[Event "*** Titled Tuesday Blitz"]
[Site "Chess.com"]
[Date "2019.05.07"]
[Round "5"]
[White "Chebure"]
[Black "slowdumbb"]
[Result "0-1"]
[WhiteElo "2616"]
[BlackElo "2565"]
[TimeControl "180+2"]
[EndTime "14:08:33 PDT"]
[Termination "slowdumbb won by resignation"]

1. d4 {[%clk 0:03:01.9]} 1... Nf6 {[%clk 0:02:58.3]} 2. Bf4 {[%clk 0:03:03.2]}
2... g6 {[%clk 0:02:59.5]} 3. e3 {[%clk 0:03:04.2]} 3... Bg7 {[%clk 0:03:00.7]}
4. Nf3 {[%clk 0:03:05.4]} 4... O-O {[%clk 0:03:02.2]} 5. h3 {[%clk 0:03:06.8]}
5... c5 {[%clk 0:03:03.8]} 6. Nbd2 {[%clk 0:03:06.9]} 6... cxd4 {[%clk
0:03:04.9]} 7. exd4 {[%clk 0:03:07.4]} 7... Nc6 {[%clk 0:03:06.4]} 8. c3 {[%clk
0:03:08.8]} 8... d6 {[%clk 0:03:07.1]} 9. Be2 {[%clk 0:03:10.2]} 9... Re8 {[%clk
0:03:08.7]} 10. O-O {[%clk 0:03:08.8]} 10... e5 {[%clk 0:03:10]} 11. Bh2 {[%clk
0:03:07.1]} 11... e4 {[%clk 0:03:07.9]} 12. Ne1 {[%clk 0:03:07.4]} 12... e3
{[%clk 0:03:07.1]} 13. fxe3 {[%clk 0:03:07.3]} 13... Rxe3 {[%clk 0:03:01.2]} 14.
Nc4 {[%clk 0:03:01.1]} 14... Qe8 {[%clk 0:02:35.1]} 15. Nxd6 {[%clk 0:02:33.8]}
15... Qe7 {[%clk 0:02:16.2]} 16. Bc4 {[%clk 0:02:28.8]} 16... Be6 {[%clk
0:01:57.1]} 17. d5 {[%clk 0:02:23.4]} 17... Bxh3 {[%clk 0:01:25.9]} 18. dxc6
{[%clk 0:02:00.8]} 18... bxc6 {[%clk 0:01:20.8]} 19. Nxf7 {[%clk 0:01:46.7]}
19... Qc5 {[%clk 0:01:03.9]} 20. Ng5+ {[%clk 0:01:09.6]} 20... Kh8 {[%clk
0:01:02]} 21. Kh1 {[%clk 0:00:57.7]} 21... Qxc4 {[%clk 0:00:55]} 22. Nef3 {[%clk
0:00:50.5]} 22... Bg4 {[%clk 0:00:50.5]} 23. b3 {[%clk 0:00:21.5]} 23... Qc5
{[%clk 0:00:41.6]} 24. Qd2 {[%clk 0:00:17.4]} 24... Rae8 {[%clk 0:00:41.4]} 25.
Nf7+ {[%clk 0:00:14.9]} 25... Kg8 {[%clk 0:00:42.2]} 26. N7e5 {[%clk 0:00:15.7]}
26... Bxf3 {[%clk 0:00:40.7]} 27. Nxf3 {[%clk 0:00:17.6]} 27... h6 {[%clk
0:00:38.6]} 28. Rae1 {[%clk 0:00:17.5]} 28... Ng4 {[%clk 0:00:36.5]} 29. Rxe3
{[%clk 0:00:16.8]} 29... Rxe3 {[%clk 0:00:37.5]} 30. Re1 {[%clk 0:00:14.4]}
30... Rxe1+ {[%clk 0:00:32.2]} 31. Qxe1 {[%clk 0:00:16.3]} 31... Nf2+ {[%clk
0:00:33.8]} 32. Kg1 {[%clk 0:00:12.4]} 32... Nd3+ {[%clk 0:00:35.2]} 0-1

[Event "*** Titled Tuesday Blitz"]
[Site "Chess.com"]
[Date "2019.05.07"]
[Round "5"]
[White "Manukyan_Artak"]
[Black "quesfr"]
[Result "1-0"]
[WhiteElo "2419"]
[BlackElo "2178"]
[TimeControl "180+2"]
[EndTime "14:08:37 PDT"]
[Termination "Manukyan_Artak won by resignation"]

1. e4 {[%clk 0:03:01.9]} 1... e5 {[%clk 0:03:00.3]} 2. Nf3 {[%clk 0:03:02.6]}
2... Nc6 {[%clk 0:03:00.7]} 3. d4 {[%clk 0:03:04.5]} 3... exd4 {[%clk
0:03:00.9]} 4. Nxd4 {[%clk 0:03:06.4]} 4... Nf6 {[%clk 0:02:56.1]} 5. Nxc6
{[%clk 0:03:07.4]} 5... bxc6 {[%clk 0:02:52.5]} 6. e5 {[%clk 0:03:08.7]} 6...
Qe7 {[%clk 0:02:52.7]} 7. Qe2 {[%clk 0:03:10.3]} 7... Nd5 {[%clk 0:02:52.6]} 8.
c4 {[%clk 0:03:12.2]} 8... Ba6 {[%clk 0:02:45.6]} 9. g3 {[%clk 0:03:12.5]} 9...
g6 {[%clk 0:02:42.1]} 10. b3 {[%clk 0:03:12.6]} 10... Bg7 {[%clk 0:02:42]} 11.
Bb2 {[%clk 0:03:13.5]} 11... O-O {[%clk 0:02:34.5]} 12. Bg2 {[%clk 0:03:14.1]}
12... Rae8 {[%clk 0:02:28.8]} 13. O-O {[%clk 0:03:14.1]} 13... Bxe5 {[%clk
0:02:25.6]} 14. Qxe5 {[%clk 0:03:13.9]} 14... Qxe5 {[%clk 0:02:26.3]} 15. Bxe5
{[%clk 0:03:15.8]} 15... Rxe5 {[%clk 0:02:27.3]} 16. cxd5 {[%clk 0:03:17.7]}
16... Bxf1 {[%clk 0:02:27.9]} 17. Kxf1 {[%clk 0:03:18.6]} 17... cxd5 {[%clk
0:02:28.8]} 18. Nc3 {[%clk 0:03:18.1]} 18... c6 {[%clk 0:02:27.4]} 19. Rc1
{[%clk 0:03:18.7]} 19... Rb8 {[%clk 0:02:06.5]} 20. Ne2 {[%clk 0:03:01.1]} 20...
Rb5 {[%clk 0:01:58]} 21. Nd4 {[%clk 0:02:46.9]} 21... Rb6 {[%clk 0:01:58.4]} 22.
Rc5 {[%clk 0:02:36.2]} 22... Re7 {[%clk 0:01:45.5]} 23. Ra5 {[%clk 0:02:29.9]}
23... d6 {[%clk 0:01:44.4]} 24. Nc2 {[%clk 0:02:25.8]} 24... Kf8 {[%clk
0:01:33]} 25. b4 {[%clk 0:02:24.6]} 25... Ke8 {[%clk 0:01:32.2]} 26. a3 {[%clk
0:02:25.4]} 26... Kd8 {[%clk 0:01:32.9]} 27. Nd4 {[%clk 0:02:22.1]} 27... a6
{[%clk 0:01:11.4]} 28. Bf3 {[%clk 0:02:18.9]} 28... Kc8 {[%clk 0:01:11.3]} 29.
a4 {[%clk 0:02:02.2]} 29... Re5 {[%clk 0:00:33.5]} 30. b5 {[%clk 0:01:59.4]}
30... axb5 {[%clk 0:00:33.9]} 31. axb5 {[%clk 0:02:00.6]} 31... cxb5 {[%clk
0:00:26.1]} 32. Nxb5 {[%clk 0:01:58.9]} 32... f6 {[%clk 0:00:20]} 33. Nd4 {[%clk
0:01:53.6]} 33... Kc7 {[%clk 0:00:15.1]} 34. Ra7+ {[%clk 0:01:50.5]} 34... Rb7
{[%clk 0:00:14.2]} 35. Ra5 {[%clk 0:01:50.3]} 35... Rb1+ {[%clk 0:00:13.9]} 36.
Kg2 {[%clk 0:01:51]} 36... Rb4 {[%clk 0:00:13.9]} 37. Nc2 {[%clk 0:01:45.9]}
37... Rc4 {[%clk 0:00:12]} 38. Ne3 {[%clk 0:01:46.7]} 38... Rc5 {[%clk
0:00:12.3]} 39. Ra7+ {[%clk 0:01:46.1]} 39... Kb6 {[%clk 0:00:12.5]} 40. Rxh7
{[%clk 0:01:43.7]} 40... d4 {[%clk 0:00:13.7]} 41. Ng4 {[%clk 0:01:42.9]} 41...
Rf5 {[%clk 0:00:11.9]} 42. Be4 {[%clk 0:01:44.2]} 42... d3 {[%clk 0:00:06.5]}
43. Bxd3 {[%clk 0:01:43.3]} 43... Rfd5 {[%clk 0:00:07.4]} 44. Bxg6 {[%clk
0:01:43.1]} 44... f5 {[%clk 0:00:08.7]} 45. Ne3 {[%clk 0:01:43.8]} 45... Rd2
{[%clk 0:00:09.7]} 46. Bxf5 {[%clk 0:01:42.2]} 46... Re5 {[%clk 0:00:08.8]} 47.
Nc4+ {[%clk 0:01:41.7]} 1-0

[Event "*** Titled Tuesday Blitz"]
[Site "Chess.com"]
[Date "2019.05.07"]
[Round "5"]
[White "kinga2008"]
[Black "GMKrikor"]
[Result "0-1"]
[WhiteElo "1941"]
[BlackElo "2750"]
[TimeControl "180+2"]
[EndTime "14:08:42 PDT"]
[Termination "GMKrikor won on time"]

1. e4 {[%clk 0:02:51.8]} 1... c5 {[%clk 0:02:57.6]} 2. Nf3 {[%clk 0:02:51.8]}
2... g6 {[%clk 0:02:59]} 3. d4 {[%clk 0:02:51.8]} 3... cxd4 {[%clk 0:03:00.9]}
4. Nxd4 {[%clk 0:02:53.2]} 4... Nc6 {[%clk 0:03:02.4]} 5. Be3 {[%clk 0:02:53.2]}
5... Nf6 {[%clk 0:03:02.8]} 6. Nc3 {[%clk 0:02:54.2]} 6... Bg7 {[%clk
0:03:03.8]} 7. Bc4 {[%clk 0:02:53.6]} 7... O-O {[%clk 0:03:05.2]} 8. O-O {[%clk
0:02:52.8]} 8... Nxe4 {[%clk 0:03:01.2]} 9. Nxe4 {[%clk 0:02:13.7]} 9... d5
{[%clk 0:03:01.4]} 10. Nxc6 {[%clk 0:02:05.5]} 10... bxc6 {[%clk 0:03:03.3]} 11.
Bd3 {[%clk 0:01:59.6]} 11... dxe4 {[%clk 0:03:02.8]} 12. Bxe4 {[%clk 0:01:59.8]}
12... Bxb2 {[%clk 0:02:56.2]} 13. Rb1 {[%clk 0:01:59]} 13... Be5 {[%clk
0:01:42.1]} 14. Bxc6 {[%clk 0:01:47]} 14... Rb8 {[%clk 0:01:37.1]} 15. Rxb8
{[%clk 0:01:32.6]} 15... Bxb8 {[%clk 0:01:36]} 16. Bh6 {[%clk 0:01:33.1]} 16...
Qc7 {[%clk 0:01:30.3]} 17. g3 {[%clk 0:01:10]} 17... Qxc6 {[%clk 0:01:29.8]} 18.
Bxf8 {[%clk 0:01:09]} 18... Kxf8 {[%clk 0:01:26.6]} 19. Qd4 {[%clk 0:01:07.5]}
19... e5 {[%clk 0:01:11.2]} 20. Qb4+ {[%clk 0:00:56.9]} 20... Bd6 {[%clk
0:01:11.6]} 21. Qh4 {[%clk 0:00:47.8]} 21... Bb7 {[%clk 0:01:07.5]} 22. f3
{[%clk 0:00:40.7]} 22... Bc5+ {[%clk 0:01:08.5]} 23. Kg2 {[%clk 0:00:31.7]}
23... Kg7 {[%clk 0:01:08.9]} 24. Qg5 {[%clk 0:00:22.8]} 24... Bd4 {[%clk
0:00:57.8]} 25. Qd2 {[%clk 0:00:22.6]} 25... h5 {[%clk 0:00:53]} 26. Qd3 {[%clk
0:00:07.3]} 26... Bb6 {[%clk 0:00:47.9]} 27. Re1 {[%clk 0:00:06.3]} 27... Bd4
{[%clk 0:00:42.3]} 28. Rd1 {[%clk 0:00:04.4]} 28... h4 {[%clk 0:00:35.5]} 29.
Rc1 {[%clk 0:00:04]} 29... hxg3 {[%clk 0:00:34.3]} 30. hxg3 {[%clk 0:00:04.5]}
30... Qf6 {[%clk 0:00:35.9]} 31. c3 {[%clk 0:00:03.8]} 31... Qg5 {[%clk
0:00:35.4]} 32. Re1 {[%clk 0:00:03]} 32... Bb6 {[%clk 0:00:34.3]} 0-1

[Event "*** Titled Tuesday Blitz"]
[Site "Chess.com"]
[Date "2019.05.07"]
[Round "5"]
[White "Thjop"]
[Black "rasmussvane"]
[Result "0-1"]
[WhiteElo "2550"]
[BlackElo "2806"]
[TimeControl "180+2"]
[EndTime "14:08:44 PDT"]
[Termination "rasmussvane won by resignation"]

1. e4 {[%clk 0:03:01.9]} 1... c6 {[%clk 0:03:00.9]} 2. d4 {[%clk 0:03:02.2]}
2... d5 {[%clk 0:03:02.5]} 3. e5 {[%clk 0:03:03]} 3... Bf5 {[%clk 0:03:03.2]} 4.
Nf3 {[%clk 0:03:04.1]} 4... e6 {[%clk 0:03:04.5]} 5. Be2 {[%clk 0:03:04.4]} 5...
Ne7 {[%clk 0:03:06]} 6. O-O {[%clk 0:03:03.9]} 6... Ng6 {[%clk 0:03:07.5]} 7. h3
{[%clk 0:02:53.6]} 7... h5 {[%clk 0:02:58.7]} 8. Be3 {[%clk 0:02:34.4]} 8... Nd7
{[%clk 0:02:58.4]} 9. Ne1 {[%clk 0:02:24.8]} 9... Qb6 {[%clk 0:02:51.6]} 10. b3
{[%clk 0:02:15.6]} 10... c5 {[%clk 0:02:52.6]} 11. c3 {[%clk 0:02:07]} 11...
cxd4 {[%clk 0:02:52.5]} 12. cxd4 {[%clk 0:02:07.8]} 12... h4 {[%clk 0:02:44]}
13. Nc3 {[%clk 0:02:01.4]} 13... Bb4 {[%clk 0:02:42.5]} 14. Na4 {[%clk
0:01:55.8]} 14... Qd8 {[%clk 0:02:43.5]} 15. Bd3 {[%clk 0:01:43.8]} 15... Bxe1
{[%clk 0:02:36]} 16. Bxf5 {[%clk 0:01:39.8]} 16... exf5 {[%clk 0:02:37.1]} 17.
Rxe1 {[%clk 0:01:36]} 17... Qe7 {[%clk 0:01:32.2]} 18. Qf3 {[%clk 0:01:33.4]}
18... Qe6 {[%clk 0:01:33.3]} 19. Nc3 {[%clk 0:01:28.9]} 19... Nb6 {[%clk
0:01:33]} 20. Nb5 {[%clk 0:01:29.9]} 20... O-O {[%clk 0:01:10.3]} 21. Nc7 {[%clk
0:01:29.5]} 21... Qd7 {[%clk 0:01:11.7]} 22. Nxa8 {[%clk 0:01:28.6]} 22... Nxa8
{[%clk 0:01:13.6]} 23. Rac1 {[%clk 0:01:27.6]} 23... Nc7 {[%clk 0:01:13.9]} 24.
Rxc7 {[%clk 0:01:02.8]} 24... Qxc7 {[%clk 0:01:15.8]} 25. Qxd5 {[%clk 0:01:04]}
25... Rd8 {[%clk 0:01:14.6]} 26. Qc4 {[%clk 0:01:03.4]} 26... Qxc4 {[%clk
0:01:14.1]} 27. bxc4 {[%clk 0:01:00.5]} 27... f4 {[%clk 0:01:15.7]} 28. Rb1
{[%clk 0:00:24.7]} 28... fxe3 {[%clk 0:01:15.6]} 29. fxe3 {[%clk 0:00:26.5]}
29... b6 {[%clk 0:01:14.4]} 30. a4 {[%clk 0:00:27.7]} 30... Rc8 {[%clk
0:01:12.3]} 31. Rc1 {[%clk 0:00:25.6]} 31... Ne7 {[%clk 0:00:47.4]} 32. Kf2
{[%clk 0:00:26.8]} 32... Nc6 {[%clk 0:00:48.3]} 33. Kf3 {[%clk 0:00:22.6]} 33...
Na5 {[%clk 0:00:47.5]} 34. c5 {[%clk 0:00:23.3]} 34... bxc5 {[%clk 0:00:45.4]}
35. dxc5 {[%clk 0:00:22.8]} 35... Kf8 {[%clk 0:00:45]} 36. Kg4 {[%clk
0:00:20.4]} 36... Ke7 {[%clk 0:00:44.5]} 37. Kxh4 {[%clk 0:00:19.4]} 37... Nc6
{[%clk 0:00:45.8]} 38. Kg3 {[%clk 0:00:17.7]} 38... Nxe5 {[%clk 0:00:46.5]} 39.
Kf4 {[%clk 0:00:18.7]} 39... Nd3+ {[%clk 0:00:47.8]} 0-1

[Event "*** Titled Tuesday Blitz"]
[Site "Chess.com"]
[Date "2019.05.07"]
[Round "5"]
[White "Indianlad"]
[Black "penguingm1"]
[Result "0-1"]
[WhiteElo "2894"]
[BlackElo "2924"]
[TimeControl "180+2"]
[EndTime "14:09:00 PDT"]
[Termination "penguingm1 won by resignation"]

1. d4 {[%clk 0:03:01.9]} 1... d5 {[%clk 0:02:57.8]} 2. c4 {[%clk 0:03:02.9]}
2... e6 {[%clk 0:02:58.7]} 3. Nf3 {[%clk 0:03:03.9]} 3... Nf6 {[%clk 0:02:56.6]}
4. Nc3 {[%clk 0:03:05.3]} 4... Be7 {[%clk 0:02:57.3]} 5. Bg5 {[%clk 0:03:06.3]}
5... h6 {[%clk 0:02:58.6]} 6. Bxf6 {[%clk 0:03:06.6]} 6... Bxf6 {[%clk
0:03:00.5]} 7. Qc2 {[%clk 0:03:07.8]} 7... O-O {[%clk 0:02:27.9]} 8. O-O-O
{[%clk 0:03:03.4]} 8... Nc6 {[%clk 0:02:28.9]} 9. e4 {[%clk 0:02:59]} 9... Nb4
{[%clk 0:02:18.3]} 10. Qd2 {[%clk 0:02:58.8]} 10... c5 {[%clk 0:02:16.3]} 11. e5
{[%clk 0:02:53]} 11... cxd4 {[%clk 0:02:11.4]} 12. Qxd4 {[%clk 0:02:36.6]} 12...
Be7 {[%clk 0:01:36.6]} 13. a3 {[%clk 0:02:36.4]} 13... Nc6 {[%clk 0:01:31.4]}
14. Qf4 {[%clk 0:02:35.3]} 14... d4 {[%clk 0:01:24.5]} 15. h4 {[%clk 0:02:01.7]}
15... Qa5 {[%clk 0:00:55.4]} 16. Nb5 {[%clk 0:02:01.1]} 16... f6 {[%clk
0:00:23.8]} 17. Qe4 {[%clk 0:01:47.3]} 17... f5 {[%clk 0:00:16.8]} 18. Qc2
{[%clk 0:01:24.7]} 18... a6 {[%clk 0:00:13.6]} 19. Nbxd4 {[%clk 0:01:24.8]}
19... Nxe5 {[%clk 0:00:14.9]} 20. Kb1 {[%clk 0:01:18.1]} 20... Nxf3 {[%clk
0:00:10.1]} 21. Nxf3 {[%clk 0:01:18.3]} 21... Bf6 {[%clk 0:00:10.2]} 22. c5
{[%clk 0:01:17.1]} 22... b5 {[%clk 0:00:10]} 23. g4 {[%clk 0:01:03.2]} 23... Bb7
{[%clk 0:00:10.8]} 24. c6 {[%clk 0:01:04.2]} 24... Rac8 {[%clk 0:00:11.7]} 25.
Rd6 {[%clk 0:00:42.6]} 25... Qc7 {[%clk 0:00:08.9]} 26. Rxe6 {[%clk 0:00:36.2]}
26... Bxc6 {[%clk 0:00:08.4]} 27. Qb3 {[%clk 0:00:36.2]} 27... Kh8 {[%clk
0:00:06.6]} 28. g5 {[%clk 0:00:34.1]} 28... Bd5 {[%clk 0:00:06.6]} 29. Qd1
{[%clk 0:00:10.5]} 29... Bxf3 {[%clk 0:00:07.9]} 30. Be2 {[%clk 0:00:09.3]}
30... Bxh1 {[%clk 0:00:06.8]} 31. gxf6 {[%clk 0:00:09.9]} 31... Be4+ {[%clk
0:00:08.3]} 32. Rxe4 {[%clk 0:00:10.4]} 32... fxe4 {[%clk 0:00:09.3]} 33. Bg4
{[%clk 0:00:12.3]} 33... Rcd8 {[%clk 0:00:10.4]} 0-1

[Event "*** Titled Tuesday Blitz"]
[Site "Chess.com"]
[Date "2019.05.07"]
[Round "5"]
[White "tomozupan"]
[Black "GMJimKnopf"]
[Result "0-1"]
[WhiteElo "2279"]
[BlackElo "2400"]
[TimeControl "180+2"]
[EndTime "14:09:02 PDT"]
[Termination "GMJimKnopf won by checkmate"]

1. d4 {[%clk 0:03:01.9]} 1... Nf6 {[%clk 0:03:00.3]} 2. Bg5 {[%clk 0:03:00.7]}
2... Ne4 {[%clk 0:03:00.7]} 3. Bf4 {[%clk 0:03:00.9]} 3... d5 {[%clk 0:02:59.7]}
4. f3 {[%clk 0:02:53.7]} 4... Nf6 {[%clk 0:02:57.4]} 5. e4 {[%clk 0:02:54.5]}
5... dxe4 {[%clk 0:02:52]} 6. Nc3 {[%clk 0:02:54.7]} 6... exf3 {[%clk
0:02:29.4]} 7. Nxf3 {[%clk 0:02:55]} 7... Bg4 {[%clk 0:02:17.7]} 8. Bc4 {[%clk
0:02:24.4]} 8... e6 {[%clk 0:02:13.3]} 9. h3 {[%clk 0:01:57.9]} 9... Bh5 {[%clk
0:02:10.3]} 10. g4 {[%clk 0:01:42.8]} 10... Bg6 {[%clk 0:02:10.9]} 11. Qe2
{[%clk 0:01:43.8]} 11... Be7 {[%clk 0:01:57.6]} 12. O-O-O {[%clk 0:01:42.7]}
12... c6 {[%clk 0:01:41.6]} 13. Ne5 {[%clk 0:01:30.8]} 13... Nd5 {[%clk
0:00:58.8]} 14. Nxd5 {[%clk 0:01:27.2]} 14... cxd5 {[%clk 0:01:00.7]} 15. Bb5+
{[%clk 0:01:23.9]} 15... Kf8 {[%clk 0:01:00.8]} 16. Rdf1 {[%clk 0:01:01.6]}
16... Nc6 {[%clk 0:00:29.2]} 17. Bxc6 {[%clk 0:00:55]} 17... bxc6 {[%clk
0:00:27.2]} 18. Nxc6 {[%clk 0:00:51.8]} 18... Qb6 {[%clk 0:00:20.9]} 19. Nxe7
{[%clk 0:00:51]} 19... Kxe7 {[%clk 0:00:22.8]} 20. Qd2 {[%clk 0:00:07.2]} 20...
Rhc8 {[%clk 0:00:22.9]} 21. c3 {[%clk 0:00:07.1]} 21... a5 {[%clk 0:00:24.4]}
22. h4 {[%clk 0:00:04.5]} 22... a4 {[%clk 0:00:25.7]} 23. h5 {[%clk 0:00:05]}
23... Be4 {[%clk 0:00:27.3]} 24. Rh2 {[%clk 0:00:05.4]} 24... Ra7 {[%clk
0:00:20]} 25. g5 {[%clk 0:00:03.1]} 25... Qa5 {[%clk 0:00:17.7]} 26. Be5 {[%clk
0:00:03.3]} 26... Ra6 {[%clk 0:00:14.3]} 27. Bxg7 {[%clk 0:00:03.3]} 27... Rac6
{[%clk 0:00:15.9]} 28. Bf6+ {[%clk 0:00:04.3]} 28... Ke8 {[%clk 0:00:16.5]} 29.
Be5 {[%clk 0:00:04.6]} 29... Rxc3+ {[%clk 0:00:16.7]} 30. bxc3 {[%clk
0:00:05.5]} 30... Rxc3+ {[%clk 0:00:18.6]} 31. Kd1 {[%clk 0:00:06.5]} 31... Rd3
{[%clk 0:00:17.9]} 32. Qxd3 {[%clk 0:00:06.8]} 32... Bxd3 {[%clk 0:00:19.8]} 33.
Rf3 {[%clk 0:00:07.4]} 33... Qc3 {[%clk 0:00:20.3]} 34. Rhh3 {[%clk 0:00:07.6]}
34... Qc2+ {[%clk 0:00:20.6]} 35. Ke1 {[%clk 0:00:08.9]} 35... Qe2# {[%clk
0:00:22.5]} 0-1

[Event "*** Titled Tuesday Blitz"]
[Site "Chess.com"]
[Date "2019.05.07"]
[Round "5"]
[White "Cryptochess"]
[Black "Jospem"]
[Result "1-0"]
[WhiteElo "2570"]
[BlackElo "2901"]
[TimeControl "180+2"]
[EndTime "14:09:03 PDT"]
[Termination "Cryptochess won on time"]

1. e4 {[%clk 0:03:01.9]} 1... e5 {[%clk 0:03:00.5]} 2. Nf3 {[%clk 0:03:02.3]}
2... Nc6 {[%clk 0:03:02.1]} 3. Bc4 {[%clk 0:03:03.5]} 3... Bc5 {[%clk 0:03:03]}
4. c3 {[%clk 0:03:04.1]} 4... Nf6 {[%clk 0:03:04.3]} 5. d3 {[%clk 0:03:05.4]}
5... d6 {[%clk 0:03:05.6]} 6. O-O {[%clk 0:03:06.6]} 6... a6 {[%clk 0:03:07.2]}
7. Bb3 {[%clk 0:03:08.1]} 7... Ba7 {[%clk 0:03:08.7]} 8. Nbd2 {[%clk 0:03:09.6]}
8... h6 {[%clk 0:03:10.2]} 9. Re1 {[%clk 0:03:10.3]} 9... Ne7 {[%clk 0:03:11.7]}
10. Nf1 {[%clk 0:03:10.9]} 10... Ng6 {[%clk 0:03:13.3]} 11. Ng3 {[%clk
0:03:12.3]} 11... O-O {[%clk 0:03:14.7]} 12. d4 {[%clk 0:03:12.9]} 12... b5
{[%clk 0:03:12.8]} 13. h3 {[%clk 0:02:58.9]} 13... c5 {[%clk 0:03:11.2]} 14. Be3
{[%clk 0:02:52.3]} 14... Bb7 {[%clk 0:03:07]} 15. Bc2 {[%clk 0:02:47.3]} 15...
Re8 {[%clk 0:02:20.5]} 16. d5 {[%clk 0:02:04.2]} 16... c4 {[%clk 0:02:15.3]} 17.
Qd2 {[%clk 0:01:58.6]} 17... Bxe3 {[%clk 0:02:15.1]} 18. Qxe3 {[%clk 0:02:00.5]}
18... Bc8 {[%clk 0:02:02.7]} 19. a4 {[%clk 0:01:55]} 19... Bd7 {[%clk
0:02:03.8]} 20. Ra3 {[%clk 0:01:55.6]} 20... Nf4 {[%clk 0:01:43.9]} 21. Rea1
{[%clk 0:01:53.6]} 21... Rb8 {[%clk 0:01:43.7]} 22. axb5 {[%clk 0:01:52.9]}
22... Bxb5 {[%clk 0:01:37.3]} 23. Nd2 {[%clk 0:01:45.6]} 23... g6 {[%clk
0:01:22.8]} 24. b3 {[%clk 0:01:30.8]} 24... Rc8 {[%clk 0:00:46.1]} 25. bxc4
{[%clk 0:01:20.2]} 25... Bxc4 {[%clk 0:00:48]} 26. Nxc4 {[%clk 0:01:19.8]} 26...
Rxc4 {[%clk 0:00:49.9]} 27. Rxa6 {[%clk 0:01:20]} 27... Qc7 {[%clk 0:00:48.6]}
28. Ra7 {[%clk 0:01:05.1]} 28... Qc5 {[%clk 0:00:41.5]} 29. R1a3 {[%clk
0:00:56.7]} 29... Rc8 {[%clk 0:00:36]} 30. Ra8 {[%clk 0:00:24.7]} 30... Rxa8
{[%clk 0:00:19.2]} 31. Rxa8+ {[%clk 0:00:26.6]} 31... Kg7 {[%clk 0:00:20.8]} 32.
Qxc5 {[%clk 0:00:27.7]} 32... Rxc5 {[%clk 0:00:22.7]} 33. Ra3 {[%clk 0:00:28.4]}
33... Nd7 {[%clk 0:00:18.6]} 34. Kf1 {[%clk 0:00:28.5]} 34... Nb6 {[%clk
0:00:19.9]} 35. Ne2 {[%clk 0:00:27.3]} 35... Nc4 {[%clk 0:00:20.6]} 36. Ra6
{[%clk 0:00:27.5]} 1-0

[Event "*** Titled Tuesday Blitz"]
[Site "Chess.com"]
[Date "2019.05.07"]
[Round "5"]
[White "GrigorGrigorov"]
[Black "Lagmantr"]
[Result "1-0"]
[WhiteElo "2829"]
[BlackElo "2590"]
[TimeControl "180+2"]
[EndTime "14:09:20 PDT"]
[Termination "GrigorGrigorov won by resignation"]

1. d4 {[%clk 0:03:01.9]} 1... d5 {[%clk 0:02:18.4]} 2. c4 {[%clk 0:03:01.4]}
2... Nf6 {[%clk 0:02:19.6]} 3. cxd5 {[%clk 0:03:01.9]} 3... g6 {[%clk
0:02:21.1]} 4. Nf3 {[%clk 0:02:53.8]} 4... Bg7 {[%clk 0:02:21.1]} 5. h4 {[%clk
0:02:46]} 5... Nxd5 {[%clk 0:02:12.5]} 6. h5 {[%clk 0:02:46.4]} 6... c5 {[%clk
0:02:11.3]} 7. h6 {[%clk 0:02:43.3]} 7... Bf6 {[%clk 0:02:06.3]} 8. e4 {[%clk
0:02:44]} 8... cxd4 {[%clk 0:01:40.5]} 9. e5 {[%clk 0:02:30.8]} 9... Nc6 {[%clk
0:01:29.4]} 10. exf6 {[%clk 0:02:29.7]} 10... Nxf6 {[%clk 0:01:28.9]} 11. Be2
{[%clk 0:02:14.1]} 11... O-O {[%clk 0:01:24.3]} 12. O-O {[%clk 0:02:15.4]} 12...
e5 {[%clk 0:01:17.2]} 13. Bg5 {[%clk 0:02:16.2]} 13... e4 {[%clk 0:01:17.4]} 14.
Nfd2 {[%clk 0:02:11.6]} 14... Bf5 {[%clk 0:00:56.4]} 15. Bb5 {[%clk 0:01:51.8]}
15... Ne5 {[%clk 0:00:42.8]} 16. Nb3 {[%clk 0:01:46.9]} 16... d3 {[%clk
0:00:42.9]} 17. N3d2 {[%clk 0:01:32.2]} 17... Qb6 {[%clk 0:00:41.4]} 18. Nc3
{[%clk 0:01:30.8]} 18... Nfg4 {[%clk 0:00:38.9]} 19. Qe1 {[%clk 0:00:50.5]}
19... a6 {[%clk 0:00:16.7]} 20. Ba4 {[%clk 0:00:46.7]} 20... Qc7 {[%clk
0:00:13.7]} 21. g3 {[%clk 0:00:24.3]} 21... b5 {[%clk 0:00:13.5]} 22. Bd1 {[%clk
0:00:25]} 22... Rae8 {[%clk 0:00:13.6]} 23. Ncxe4 {[%clk 0:00:20.1]} 23... Nc4
{[%clk 0:00:14.6]} 24. Bxg4 {[%clk 0:00:19.6]} 24... Bxe4 {[%clk 0:00:14.3]} 25.
Nxe4 {[%clk 0:00:19.8]} 25... f5 {[%clk 0:00:14.1]} 26. Nf6+ {[%clk 0:00:19.8]}
26... Kf7 {[%clk 0:00:15.4]} 27. Nxe8 {[%clk 0:00:20.3]} 27... Rxe8 {[%clk
0:00:17.3]} 28. Qc3 {[%clk 0:00:21.8]} 28... Qe5 {[%clk 0:00:16.2]} 29. Qxe5
{[%clk 0:00:20.6]} 29... Nxe5 {[%clk 0:00:18.1]} 30. Bd1 {[%clk 0:00:21.2]}
30... Rc8 {[%clk 0:00:18.5]} 31. Bb3+ {[%clk 0:00:21.9]} 31... Kf8 {[%clk
0:00:18.8]} 32. Rfe1 {[%clk 0:00:22.6]} 32... Nf3+ {[%clk 0:00:19.4]} 33. Kg2
{[%clk 0:00:22.7]} 33... Nxg5 {[%clk 0:00:21.3]} 34. Rad1 {[%clk 0:00:23.2]}
34... Rd8 {[%clk 0:00:21.3]} 35. Re3 {[%clk 0:00:23]} 35... d2 {[%clk
0:00:22.5]} 36. Re2 {[%clk 0:00:24]} 36... Ne4 {[%clk 0:00:23.5]} 37. f3 {[%clk
0:00:24.4]} 37... Nc5 {[%clk 0:00:23.7]} 38. Rexd2 {[%clk 0:00:25.3]} 38...
Rxd2+ {[%clk 0:00:24.8]} 39. Rxd2 {[%clk 0:00:26.1]} 39... Ke7 {[%clk
0:00:26.7]} 40. Bg8 {[%clk 0:00:25.8]} 40... Ne4 {[%clk 0:00:27.7]} 41. fxe4
{[%clk 0:00:26.3]} 1-0